fUST/lending_fUST_20250221
["ID","MTS","AMOUNT","RATE_DAILY","PERIOD"]
[353839436,1740087049207,-500.0,0.00014027,2]
[353839437,1740087049218,-803.59,0.00014027,2]
[353839438,1740087049228,-2222.49,0.00014027,2]
[353839439,1740087049239,-2487.05,0.00014027,2]
[353839440,1740087049253,-500.0,0.00014027,2]
[353839441,1740087049263,-536.98,0.00014027,2]
[353839442,1740087049272,-8665.3,0.00014027,2]
[353839443,1740087049283,-500.0,0.00014027,2]
[353839444,1740087049292,-500.0,0.00014027,2]
[353839445,1740087049303,-833.45,0.00014027,2]
[353839446,1740087049313,-2070.63,0.00014027,2]
[353839447,1740087049324,-500.0,0.00014027,2]
[353839448,1740087049334,-500.0,0.00014027,2]
[353839449,1740087049344,-1378.96,0.00014027,2]
[353839450,1740087049353,-1125.78062592,0.00014082,2]
[353839451,1740087049363,-7438.69753278,0.00014085,2]
[353839452,1740087049373,-151.0,0.000141,2]
[353839453,1740087049383,-151.0,0.000141,2]
[353839454,1740087049393,-500.0,0.00014109,2]
[353839455,1740087049403,-197.27879327,0.00014109,2]
[353839456,1740087049412,-503.7709852,0.00014109,2]
[353839457,1740087049423,-480.08567143,0.00014109,2]
[353839458,1740087049433,-500.0,0.00014109,2]
[353839459,1740087049442,-503.11989805,0.00014109,2]
[353839460,1740087049452,-500.0,0.00014109,2]
[353839461,1740087049461,-500.0,0.00014109,2]
[353839462,1740087049471,-500.0,0.00014109,2]
[353839463,1740087049481,-500.0,0.00014109,2]
[353839464,1740087049490,-500.0,0.00014109,2]
[353839465,1740087049500,-500.0,0.00014109,2]
[353839466,1740087049510,-500.0,0.00014109,2]
[353839467,1740087049520,-500.0,0.00014109,2]
[353839468,1740087049538,-500.0,0.00014109,2]
[353839469,1740087049550,-500.0,0.00014109,2]
[353839470,1740087049560,-500.0,0.00014109,2]
[353839471,1740087049570,-500.0,0.00014109,2]
[353839472,1740087049580,-1641.08,0.00014109,2]
[353839473,1740087049591,-859.29,0.00014109,2]
[353839474,1740087049601,-1036.17,0.00014109,2]
[353839475,1740087049611,-500.0,0.00014109,2]
[353839476,1740087049620,-500.0,0.00014109,2]
[353839477,1740087049629,-500.0,0.00014109,2]
[353839478,1740087049638,-500.0,0.00014109,2]
[353839479,1740087049647,-752.36,0.00014109,2]
[353839480,1740087049657,-573.78,0.00014109,2]
[353839481,1740087049667,-500.0,0.00014109,2]
[353839482,1740087049677,-500.0,0.00014109,2]
[353839483,1740087049686,-500.0,0.00014109,2]
[353839484,1740087049696,-500.0,0.00014109,2]
[353839485,1740087049838,-1213.27,0.00014109,2]
[353839486,1740087049848,-660.09,0.00014109,2]
[353839487,1740087049858,-784.62,0.00014109,2]
[353839488,1740087049869,-500.0,0.00014109,2]
[353839489,1740087049878,-500.0,0.00014109,2]
[353839490,1740087049888,-781.87,0.00014109,2]
[353839491,1740087049897,-500.0,0.00014109,2]
[353839492,1740087049907,-500.0,0.00014109,2]
[353839493,1740087049917,-812.22,0.00014109,2]
[353839494,1740087049927,-500.0,0.00014109,2]
[353839495,1740087049937,-299.97500029,0.00014109,2]
[353839496,1740087049947,-865.91,0.00014109,2]
[353839497,1740087049957,-731.9,0.00014109,2]
[353839498,1740087049966,-1424.64,0.00014109,2]
[353839499,1740087049976,-756.84,0.00014109,2]
[353839500,1740087049985,-500.0,0.00014109,2]
[353839501,1740087049995,-500.0,0.00014109,2]
[353839502,1740087050005,-500.0,0.00014109,2]
[353839503,1740087050015,-510.23,0.00014109,2]
[353839504,1740087050025,-500.0,0.00014109,2]
[353839505,1740087050034,-543.53,0.00014109,2]
[353839506,1740087050044,-722.93,0.00014109,2]
[353839507,1740087050054,-616.62,0.00014109,2]
[353839508,1740087050064,-500.0,0.00014109,2]
[353839509,1740087050073,-446.70941758,0.00014109,2]
[353839510,1740087050083,-500.0,0.00014109,2]
[353839511,1740087050092,-590.78002538,0.00014109,2]
[353839512,1740087050102,-500.0,0.00014109,2]
[353839513,1740087050112,-500.0,0.00014109,2]
[353839514,1740087050122,-921.41,0.00014109,2]
[353839515,1740087050133,-500.0,0.00014109,2]
[353839516,1740087050143,-500.0,0.00014109,2]
[353839517,1740087050153,-638.61968683,0.00014109,2]
[353839518,1740087050164,-371.04980612,0.00014109,2]
[353839519,1740087050175,-634.66,0.00014109,2]
[353839520,1740087050184,-802.0,0.00014109,2]
[353839521,1740087050194,-500.0,0.00014109,2]
[353839522,1740087050205,-500.0,0.00014109,2]
[353839523,1740087050215,-680.47,0.00014109,2]
[353839524,1740087050224,-609.4,0.00014109,2]
[353839525,1740087050234,-500.0,0.00014109,2]
[353839526,1740087050245,-500.0,0.00014109,2]
[353839527,1740087050257,-500.0,0.00014109,2]
[353839528,1740087050266,-713.95,0.00014109,2]
[353839529,1740087050276,-4482.33,0.00014109,2]
[353839530,1740087050287,-500.0,0.00014109,2]
[353839531,1740087050296,-500.0,0.00014109,2]
[353839532,1740087050306,-711.96,0.00014109,2]
[353839533,1740087050315,-854.95,0.00014109,2]
[353839534,1740087050325,-1389.71,0.00014109,2]
[353839535,1740087050334,-500.0,0.00014109,2]
[353839536,1740087050344,-500.0,0.00014109,2]
[353839537,1740087050353,-380.47740098,0.00014109,2]
[353839538,1740087050363,-16524.72,0.00014109,2]
[353839539,1740087050372,-599.75,0.00014109,2]
[353839540,1740087050382,-500.0,0.00014109,2]
[353839541,1740087050391,-500.0,0.00014109,2]
[353839542,1740087050400,-500.0,0.00014109,2]
[353839543,1740087050409,-701.65,0.00014109,2]
[353839544,1740087050418,-3198.43,0.00014109,2]
[353839545,1740087050428,-1206.8,0.00014109,2]
[353839546,1740087050437,-1312.98,0.00014109,2]
[353839547,1740087050447,-1437.76,0.00014109,2]
[353839548,1740087050458,-500.0,0.00014109,2]
[353839549,1740087050467,-500.0,0.00014109,2]
[353839550,1740087050477,-1098.36,0.00014109,2]
[353839551,1740087050487,-3728.66,0.00014109,2]
[353839552,1740087050497,-500.0,0.00014109,2]
[353839553,1740087050507,-506.49934828,0.00014109,2]
[353839554,1740087050516,-500.0,0.00014109,2]
[353839555,1740087050526,-7892.98,0.00014109,2]
[353839556,1740087050536,-500.0,0.00014109,2]
[353839557,1740087050546,-37991.13,0.00014109,2]
[353839558,1740087050556,-500.0,0.00014109,2]
[353839559,1740087050566,-500.0,0.00014109,2]
[353839560,1740087050575,-500.0,0.00014109,2]
[353839561,1740087050584,-500.0,0.00014109,2]
[353839562,1740087050594,-2455.56,0.00014109,2]
[353839563,1740087050604,-500.0,0.00014109,2]
[353839564,1740087050613,-633.67506021,0.00014109,2]
[353839565,1740087050623,-4421.0,0.00014109,2]
[353839566,1740087050632,-1271.95,0.00014109,2]
[353839567,1740087050642,-4009.3,0.00014109,2]
[353839568,1740087050651,-721.23,0.00014109,2]
[353839569,1740087050661,-721.81,0.00014109,2]
[353839570,1740087050670,-2378.09,0.00014109,2]
[353839571,1740087050679,-500.0,0.00014109,2]
[353839572,1740087050690,-1740.96,0.00014109,2]
[353839573,1740087050700,-1000.04,0.00014109,2]
[353839574,1740087050709,-744.9,0.00014109,2]
[353839575,1740087050719,-500.0,0.00014109,2]
[353839576,1740087050729,-500.0,0.00014109,2]
[353839577,1740087050739,-1158.45,0.00014109,2]
[353839578,1740087050748,-1405.19,0.00014109,2]
[353839579,1740087050758,-579.0,0.00014109,2]
[353839580,1740087050767,-500.0,0.00014109,2]
[353839581,1740087050777,-501.01678089,0.00014109,2]
[353839582,1740087050786,-2581.94,0.00014109,2]
[353839583,1740087050796,-730.42,0.00014109,2]
[353839584,1740087050806,-500.0,0.00014109,2]
[353839585,1740087050815,-1848.57,0.00014109,2]
[353839586,1740087050825,-500.0,0.00014109,2]
[353839587,1740087050835,-500.0,0.00014109,2]
[353839588,1740087050845,-500.0,0.00014109,2]
[353839589,1740087050855,-500.0,0.00014109,2]
[353839590,1740087050866,-579.63,0.00014109,2]
[353839591,1740087050875,-551.58,0.00014109,2]
[353839592,1740087050884,-500.0,0.00014109,2]
[353839593,1740087050894,-500.0,0.00014109,2]
[353839594,1740087050904,-500.0,0.00014109,2]
[353839595,1740087050914,-6732.42,0.00014109,2]
[353839596,1740087050923,-500.0,0.00014109,2]
[353839597,1740087050933,-378.3472983,0.00014109,2]
[353839598,1740087050943,-500.0,0.00014109,2]
[353839599,1740087050952,-929.37,0.00014109,2]
[353839600,1740087050961,-500.0,0.00014109,2]
[353839601,1740087050971,-1667.92,0.00014109,2]
[353839602,1740087050980,-18918.3,0.00014109,2]
[353839603,1740087050989,-500.0,0.00014109,2]
[353839604,1740087050999,-707.91,0.00014109,2]
[353839605,1740087051008,-500.0,0.00014109,2]
[353839606,1740087051018,-500.0,0.00014109,2]
[353839607,1740087051028,-803.59,0.00014109,2]
[353839608,1740087051037,-2222.49,0.00014109,2]
[353839609,1740087051047,-2487.05,0.00014109,2]
[353839610,1740087051056,-500.0,0.00014109,2]
[353839611,1740087051066,-536.98,0.00014109,2]
[353839612,1740087051075,-8665.3,0.00014109,2]
[353839613,1740087051084,-500.0,0.00014109,2]
[353839614,1740087051094,-500.0,0.00014109,2]
[353839615,1740087051104,-833.45,0.00014109,2]
[353839616,1740087051113,-2070.63,0.00014109,2]
[353839617,1740087051124,-500.0,0.00014109,2]
[353839618,1740087051133,-500.0,0.00014109,2]
[353839619,1740087051142,-1378.96,0.00014109,2]
[353839620,1740087051151,-160.0,0.00014118,3]
[353839621,1740087051161,-192.0,0.00014133,2]
[353839622,1740087051171,-500.56083412,0.00014173,2]
[353839623,1740087051180,-500.46242224,0.00014173,2]
[353839624,1740087051190,-162.10412345,0.00014173,2]
[353839625,1740087051200,-522.19010292,0.00014173,2]
[353839626,1740087051211,-500.0,0.00014173,2]
[353839627,1740087051220,-500.0,0.00014173,2]
[353839628,1740087051230,-500.0,0.00014173,2]
[353839629,1740087051240,-330.74368863,0.00014173,2]
[353839630,1740087051253,-500.23465509,0.00014173,2]
[353839631,1740087051263,-501.04782091,0.00014173,2]
[353839632,1740087051273,-500.0,0.00014173,2]
[353839633,1740087051282,-500.0,0.00014173,2]
[353839634,1740087051293,-500.31695109,0.00014173,2]
[353839635,1740087051302,-152.04214769,0.00014173,2]
[353839636,1740087051312,-500.0,0.00014191,2]
[353839637,1740087051321,-500.0,0.00014191,2]
[353839638,1740087051331,-500.0,0.00014191,2]
[353839639,1740087051341,-500.0,0.00014191,2]
[353839640,1740087051350,-500.0,0.00014191,2]
[353839641,1740087051360,-500.0,0.00014191,2]
[353839642,1740087051370,-500.0,0.00014191,2]
[353839643,1740087051380,-500.0,0.00014191,2]
[353839644,1740087051389,-500.0,0.00014191,2]
[353839645,1740087051398,-500.0,0.00014191,2]
[353839646,1740087051408,-500.0,0.00014191,2]
[353839647,1740087051418,-500.0,0.00014191,2]
[353839648,1740087051427,-500.0,0.00014191,2]
[353839649,1740087051437,-1641.08,0.00014191,2]
[353839650,1740087051447,-859.29,0.00014191,2]
[353839651,1740087051456,-1036.17,0.00014191,2]
[353839652,1740087051466,-500.0,0.00014191,2]
[353839653,1740087051476,-260.57913251,0.00014191,2]
[353839654,1740087051485,-500.0,0.00014191,2]
[353839655,1740087051494,-500.0,0.00014191,2]
[353839656,1740087051504,-752.36,0.00014191,2]
[353839657,1740087051513,-573.78,0.00014191,2]
[353839658,1740087051522,-500.0,0.00014191,2]
[353839659,1740087051532,-151.54445184,0.00014191,2]
[353839660,1740087051541,-500.0,0.00014191,2]
[353839661,1740087051551,-500.0,0.00014191,2]
[353839662,1740087051560,-1213.27,0.00014191,2]
[353839663,1740087051569,-660.09,0.00014191,2]
[353839664,1740087051578,-784.62,0.00014191,2]
[353839665,1740087051588,-500.0,0.00014191,2]
[353839666,1740087051677,-500.0,0.00014191,2]
[353839667,1740087051688,-781.87,0.00014191,2]
[353839668,1740087051698,-229.88966648,0.00014191,2]
[353839669,1740087051708,-812.22,0.00014191,2]
[353839670,1740087051717,-500.0,0.00014191,2]
[353839671,1740087051727,-865.91,0.00014191,2]
[353839672,1740087051736,-731.9,0.00014191,2]
[353839673,1740087051745,-1424.64,0.00014191,2]
[353839674,1740087051755,-756.84,0.00014191,2]
[353839675,1740087051766,-500.0,0.00014191,2]
[353839676,1740087051776,-500.0,0.00014191,2]
[353839677,1740087051786,-500.0,0.00014191,2]
[353839678,1740087051795,-510.23,0.00014191,2]
[353839679,1740087051805,-500.0,0.00014191,2]
[353839680,1740087051815,-543.53,0.00014191,2]
[353839681,1740087051824,-722.93,0.00014191,2]
[353839682,1740087051834,-616.62,0.00014191,2]
[353839683,1740087051844,-500.0,0.00014191,2]
[353839684,1740087051853,-500.0,0.00014191,2]
[353839685,1740087051863,-500.0,0.00014191,2]
[353839686,1740087051872,-476.16308693,0.00014191,2]
[353839687,1740087051881,-921.41,0.00014191,2]
[353839688,1740087051891,-500.0,0.00014191,2]
[353839689,1740087051901,-500.0,0.00014191,2]
[353839690,1740087051911,-634.66,0.00014191,2]
[353839691,1740087051921,-802.0,0.00014191,2]
[353839692,1740087051931,-500.0,0.00014191,2]
[353839693,1740087051940,-500.0,0.00014191,2]
[353839694,1740087051950,-680.47,0.00014191,2]
[353839695,1740087051959,-609.4,0.00014191,2]
[353839696,1740087051968,-631.0206765,0.00014191,2]
[353839697,1740087051978,-500.0,0.00014191,2]
[353839698,1740087051988,-500.0,0.00014191,2]
[353839699,1740087051998,-713.95,0.00014191,2]
[353839700,1740087052008,-4482.33,0.00014191,2]
[353839701,1740087052018,-500.0,0.00014191,2]
[353839702,1740087052028,-500.0,0.00014191,2]
[353839703,1740087052038,-711.96,0.00014191,2]
[353839704,1740087052048,-854.95,0.00014191,2]
[353839705,1740087052057,-1389.71,0.00014191,2]
[353839706,1740087052068,-500.0,0.00014191,2]
[353839707,1740087052078,-500.0,0.00014191,2]
[353839708,1740087052087,-16524.72,0.00014191,2]
[353839709,1740087052096,-599.75,0.00014191,2]
[353839710,1740087052105,-500.0,0.00014191,2]
[353839711,1740087052115,-500.0,0.00014191,2]
[353839712,1740087052124,-500.0,0.00014191,2]
[353839713,1740087052133,-701.65,0.00014191,2]
[353839714,1740087052142,-3198.43,0.00014191,2]
[353839715,1740087052152,-1206.8,0.00014191,2]
[353839716,1740087052161,-1312.98,0.00014191,2]
[353839717,1740087052171,-1437.76,0.00014191,2]
[353839718,1740087052180,-500.0,0.00014191,2]
[353839719,1740087052190,-500.0,0.00014191,2]
[353839720,1740087052199,-1098.36,0.00014191,2]
[353839721,1740087052210,-3728.66,0.00014191,2]
[353839722,1740087052219,-500.0,0.00014191,2]
[353839723,1740087052229,-497.4229373,0.00014191,2]
[353839724,1740087052238,-7892.98,0.00014191,2]
[353839725,1740087052251,-500.0,0.00014191,2]
[353839726,1740087052261,-37991.13,0.00014191,2]
[353839727,1740087052271,-500.0,0.00014191,2]
[353839728,1740087052280,-500.0,0.00014191,2]
[353839729,1740087052290,-619.06561779,0.00014191,2]
[353839730,1740087052299,-500.0,0.00014191,2]
[353839731,1740087052309,-2455.56,0.00014191,2]
[353839732,1740087052319,-500.0,0.00014191,2]
[353839733,1740087052329,-4421.0,0.00014191,2]
[353839734,1740087052339,-1271.95,0.00014191,2]
[353839735,1740087052348,-4009.3,0.00014191,2]
[353839736,1740087052358,-721.23,0.00014191,2]
[353839737,1740087052367,-721.81,0.00014191,2]
[353839738,1740087052377,-2378.09,0.00014191,2]
[353839739,1740087052387,-500.0,0.00014191,2]
[353839740,1740087052397,-1740.96,0.00014191,2]
[353839741,1740087052407,-1000.04,0.00014191,2]
[353839742,1740087052416,-744.9,0.00014191,2]
[353839743,1740087052426,-500.0,0.00014191,2]
[353839744,1740087052436,-500.0,0.00014191,2]
[353839745,1740087052445,-1158.45,0.00014191,2]
[353839746,1740087052454,-1405.19,0.00014191,2]
[353839747,1740087052464,-579.0,0.00014191,2]
[353839748,1740087052474,-500.0,0.00014191,2]
[353839749,1740087052483,-2581.94,0.00014191,2]
[353839750,1740087052493,-730.42,0.00014191,2]
[353839751,1740087052503,-500.0,0.00014191,2]
[353839752,1740087052513,-1848.57,0.00014191,2]
[353839753,1740087052523,-500.0,0.00014191,2]
[353839754,1740087052532,-500.0,0.00014191,2]
[353839755,1740087052542,-500.0,0.00014191,2]
[353839756,1740087052552,-500.0,0.00014191,2]
[353839757,1740087052562,-579.63,0.00014191,2]
[353839758,1740087052572,-551.58,0.00014191,2]
[353839759,1740087052581,-500.0,0.00014191,2]
[353839760,1740087052591,-500.0,0.00014191,2]
[353839761,1740087052600,-500.0,0.00014191,2]
[353839762,1740087052610,-6732.42,0.00014191,2]
[353839763,1740087052619,-500.0,0.00014191,2]
[353839764,1740087052629,-500.0,0.00014191,2]
[353839765,1740087052638,-929.37,0.00014191,2]
[353839766,1740087052648,-500.0,0.00014191,2]
[353839767,1740087052657,-1667.92,0.00014191,2]
[353839768,1740087052666,-18918.3,0.00014191,2]
[353839769,1740087052676,-500.0,0.00014191,2]
[353839770,1740087052685,-707.91,0.00014191,2]
[353839771,1740087052695,-500.0,0.00014191,2]
[353839772,1740087052704,-502.24315677,0.00014191,2]
[353839773,1740087052713,-803.59,0.00014191,2]
[353839774,1740087052723,-2222.49,0.00014191,2]
[353839775,1740087052732,-2487.05,0.00014191,2]
[353839776,1740087052741,-506.55284044,0.00014191,2]
[353839777,1740087052751,-536.98,0.00014191,2]
[353839778,1740087052760,-8665.3,0.00014191,2]
[353839779,1740087052769,-833.45,0.00014191,2]
[353839780,1740087052778,-2070.63,0.00014191,2]
[353839781,1740087052787,-500.0,0.00014191,2]
[353839782,1740087052797,-500.0,0.00014191,2]
[353839783,1740087052806,-1378.96,0.00014191,2]
[353839784,1740087052815,-2714.81,0.000142,2]
[353839785,1740087052824,-11866.1117743,0.00014209,2]
[353839786,1740087052833,-166.160499,0.0001421,5]
[353839787,1740087052842,-500.0,0.00014221,2]
[353839788,1740087052852,-500.0,0.00014221,2]
[353839789,1740087052861,-631.18133988,0.00014221,2]
[353839790,1740087052870,-500.0,0.00014273,2]
[353839791,1740087052879,-500.0,0.00014273,2]
[353839792,1740087052888,-500.0,0.00014273,2]
[353839793,1740087052897,-500.0,0.00014273,2]
[353839794,1740087052907,-500.0,0.00014273,2]
[353839795,1740087052916,-500.0,0.00014273,2]
[353839796,1740087052925,-500.0,0.00014273,2]
[353839797,1740087052934,-500.0,0.00014273,2]
[353839798,1740087052944,-500.0,0.00014273,2]
[353839799,1740087052953,-500.0,0.00014273,2]
[353839800,1740087052962,-500.0,0.00014273,2]
[353839801,1740087052972,-500.0,0.00014273,2]
[353839802,1740087052982,-500.0,0.00014273,2]
[353839803,1740087052991,-1641.08,0.00014273,2]
[353839804,1740087053000,-859.29,0.00014273,2]
[353839805,1740087053010,-1036.17,0.00014273,2]
[353839806,1740087053020,-503.17323342,0.00014273,2]
[353839807,1740087053030,-500.0,0.00014273,2]
[353839808,1740087053040,-752.36,0.00014273,2]
[353839809,1740087053050,-573.78,0.00014273,2]
[353839810,1740087053060,-500.0,0.00014273,2]
[353839811,1740087053070,-500.0,0.00014273,2]
[353839812,1740087053080,-500.0,0.00014273,2]
[353839813,1740087053090,-1213.27,0.00014273,2]
[353839814,1740087053100,-660.09,0.00014273,2]
[353839815,1740087053110,-784.62,0.00014273,2]
[353839816,1740087053119,-485.66519006,0.00014273,2]
[353839817,1740087053129,-500.0,0.00014273,2]
[353839818,1740087053139,-781.87,0.00014273,2]
[353839819,1740087053149,-812.22,0.00014273,2]
[353839820,1740087053159,-500.0,0.00014273,2]
[353839821,1740087053168,-865.91,0.00014273,2]
[353839822,1740087053178,-731.9,0.00014273,2]
[353839823,1740087053189,-1424.64,0.00014273,2]
[353839824,1740087053198,-756.84,0.00014273,2]
[353839825,1740087053208,-500.0,0.00014273,2]
[353839826,1740087053217,-500.0,0.00014273,2]
[353839827,1740087053227,-500.0,0.00014273,2]
[353839828,1740087053236,-510.23,0.00014273,2]
[353839829,1740087053246,-500.0,0.00014273,2]
[353839830,1740087053262,-543.53,0.00014273,2]
[353839831,1740087053272,-722.93,0.00014273,2]
[353839832,1740087053281,-616.62,0.00014273,2]
[353839833,1740087053365,-500.0,0.00014273,2]
[353839834,1740087053375,-500.0,0.00014273,2]
[353839835,1740087053384,-500.0,0.00014273,2]
[353839836,1740087053394,-921.41,0.00014273,2]
[353839837,1740087053404,-500.0,0.00014273,2]
[353839838,1740087053415,-500.0,0.00014273,2]
[353839839,1740087053424,-634.66,0.00014273,2]
[353839840,1740087053434,-802.0,0.00014273,2]
[353839841,1740087053443,-500.0,0.00014273,2]
[353839842,1740087053453,-500.0,0.00014273,2]
[353839843,1740087053463,-680.47,0.00014273,2]
[353839844,1740087053473,-151.0,0.00014273,2]
[353839845,1740087053482,-609.4,0.00014273,2]
[353839846,1740087053492,-500.0,0.00014273,2]
[353839847,1740087053502,-500.0,0.00014273,2]
[353839848,1740087053511,-713.95,0.00014273,2]
[353839849,1740087053521,-4482.33,0.00014273,2]
[353839850,1740087053532,-500.0,0.00014273,2]
[353839851,1740087053542,-500.0,0.00014273,2]
[353839852,1740087053552,-711.96,0.00014273,2]
[353839853,1740087053562,-854.95,0.00014273,2]
[353839854,1740087053571,-152.137845,0.00014273,2]
[353839855,1740087053581,-1389.71,0.00014273,2]
[353839856,1740087053591,-500.0,0.00014273,2]
[353839857,1740087053600,-500.0,0.00014273,2]
[353839858,1740087053610,-151.0,0.00014273,2]
[353839859,1740087053619,-16524.72,0.00014273,2]
[353839860,1740087053629,-599.75,0.00014273,2]
[353839861,1740087053639,-500.0,0.00014273,2]
[353839862,1740087053648,-500.0,0.00014273,2]
[353839863,1740087053657,-500.0,0.00014273,2]
[353839864,1740087053667,-701.65,0.00014273,2]
[353839865,1740087053676,-3198.43,0.00014273,2]
[353839866,1740087053686,-1206.8,0.00014273,2]
[353839867,1740087053695,-1312.98,0.00014273,2]
[353839868,1740087053704,-1437.76,0.00014273,2]
[353839869,1740087053714,-151.0,0.00014273,2]
[353839870,1740087053723,-151.0,0.00014273,2]
[353839871,1740087053733,-158.866005,0.00014273,2]
[353839872,1740087053743,-500.0,0.00014273,2]
[353839873,1740087053752,-500.0,0.00014273,2]
[353839874,1740087053761,-1098.36,0.00014273,2]
[353839875,1740087053771,-3728.66,0.00014273,2]
[353839876,1740087053781,-500.0,0.00014273,2]
[353839877,1740087053790,-196.012323,0.00014273,2]
[353839878,1740087053800,-7892.98,0.00014273,2]
[353839879,1740087053809,-500.0,0.00014273,2]
[353839880,1740087053819,-37991.13,0.00014273,2]
[353839881,1740087053828,-502.48918186,0.00014273,2]
[353839882,1740087053838,-500.0,0.00014273,2]
[353839883,1740087053847,-500.0,0.00014273,2]
[353839884,1740087053856,-2455.56,0.00014273,2]
[353839885,1740087053866,-500.0,0.00014273,2]
[353839886,1740087053875,-4421.0,0.00014273,2]
[353839887,1740087053884,-1271.95,0.00014273,2]
[353839888,1740087053893,-4009.3,0.00014273,2]
[353839889,1740087053903,-721.23,0.00014273,2]
[353839890,1740087053912,-721.81,0.00014273,2]
[353839891,1740087053922,-2378.09,0.00014273,2]
[353839892,1740087053931,-500.0,0.00014273,2]
[353839893,1740087053941,-1740.96,0.00014273,2]
[353839894,1740087053951,-1000.04,0.00014273,2]
[353839895,1740087053960,-744.9,0.00014273,2]
[353839896,1740087053970,-500.0,0.00014273,2]
[353839897,1740087053979,-500.0,0.00014273,2]
[353839898,1740087053989,-1158.45,0.00014273,2]
[353839899,1740087053998,-1405.19,0.00014273,2]
[353839900,1740087054007,-579.0,0.00014273,2]
[353839901,1740087054017,-2581.94,0.00014273,2]
[353839902,1740087054027,-730.42,0.00014273,2]
[353839903,1740087054036,-500.0,0.00014273,2]
[353839904,1740087054047,-1848.57,0.00014273,2]
[353839905,1740087054056,-500.0,0.00014273,2]
[353839906,1740087054066,-500.0,0.00014273,2]
[353839907,1740087054076,-500.0,0.00014273,2]
[353839908,1740087054086,-151.0,0.00014273,2]
[353839909,1740087054096,-500.0,0.00014273,2]
[353839910,1740087054106,-551.58,0.00014273,2]
[353839911,1740087054116,-579.63,0.00014273,2]
[353839912,1740087054126,-500.0,0.00014273,2]
[353839913,1740087054136,-500.0,0.00014273,2]
[353839914,1740087054146,-500.0,0.00014273,2]
[353839915,1740087054156,-6732.42,0.00014273,2]
[353839916,1740087054165,-500.0,0.00014273,2]
[353839917,1740087054175,-500.0,0.00014273,2]
[353839918,1740087054185,-929.37,0.00014273,2]
[353839919,1740087054194,-500.0,0.00014273,2]
[353839920,1740087054204,-151.0,0.00014273,2]
[353839921,1740087054214,-1667.92,0.00014273,2]
[353839922,1740087054224,-18918.3,0.00014273,2]
[353839923,1740087054234,-500.0,0.00014273,2]
[353839924,1740087054245,-707.91,0.00014273,2]
[353839925,1740087054257,-500.0,0.00014273,2]
[353839926,1740087054267,-803.59,0.00014273,2]
[353839927,1740087054276,-2222.49,0.00014273,2]
[353839928,1740087054286,-2487.05,0.00014273,2]
[353839929,1740087054295,-536.98,0.00014273,2]
[353839930,1740087054304,-8665.3,0.00014273,2]
[353839931,1740087054314,-833.45,0.00014273,2]
[353839932,1740087054325,-2070.63,0.00014273,2]
[353839933,1740087054335,-181.18589493,0.00014273,2]
[353839934,1740087054344,-500.0,0.00014273,2]
[353839935,1740087054353,-1378.96,0.00014273,2]